bitfinex-derivatives/quotes_BTCF0:USTF0_20251118
["timestamp","ask_amount","ask_price","bid_price","bid_amount"]
[1763483427309,0.09082469,93782.0,93781.0,0.00015993]
[1763483427608,0.09182469,93782.0,93781.0,0.00015993]
[1763483428110,0.08719,93780.0,93779.0,0.28902993]
[1763483428404,0.05248,93764.0,93759.0,0.3608]
[1763483428595,0.31212,93764.0,93760.0,0.00219803]
[1763483428800,0.31223368,93764.0,93760.0,0.00219803]
[1763483428998,0.25975368,93764.0,93763.0,0.45153]
[1763483430498,0.00011368,93764.0,93763.0,0.45153]
[1763483430900,0.05259368,93764.0,93763.0,0.3608]
[1763483431100,0.05359368,93764.0,93763.0,0.3608]
[1763483432914,0.31323368,93764.0,93763.0,0.40559]
[1763483433204,0.00111368,93764.0,93763.0,0.45153]
[1763483434711,0.00011368,93764.0,93763.0,0.45153]
[1763483435609,0.00015993,93773.0,93772.0,0.11736]
[1763483435799,0.25968,93776.0,93775.0,0.09073]
[1763483436004,0.1879,93776.0,93775.0,0.09073]
[1763483436201,0.27509,93776.0,93775.0,0.04479]
[1763483436501,0.08719,93773.0,93772.0,0.3608]
[1763483436906,0.04366,93773.0,93772.0,0.45153]
[1763483437105,0.1067266,93775.0,93774.0,0.09073]
[1763483437304,0.1067266,93775.0,93772.0,0.3608]
[1763483437305,0.08719,93773.0,93772.0,0.3608]
[1763483437714,0.1879,93776.0,93775.0,0.09073]
[1763483438012,0.1879,93776.0,93772.0,0.3608]
[1763483438013,0.08819,93773.0,93772.0,0.3608]
[1763483438209,0.001,93773.0,93772.0,0.47816]
[1763483439009,0.04466,93773.0,93772.0,0.44903]
[1763483439311,0.08819,93773.0,93772.0,0.3583]
[1763483439616,0.1939188,93773.0,93772.0,0.3583]
[1763483440613,0.1949188,93773.0,93772.0,0.3583]
[1763483441215,0.08819,93773.0,93772.0,0.3583]
[1763483442008,0.1949188,93773.0,93772.0,0.3583]
[1763483443010,0.001,93773.0,93772.0,0.47566]
[1763483443603,0.08819,93773.0,93772.0,0.3583]
[1763483444103,0.08719,93773.0,93772.0,0.3583]
[1763483444411,0.08819,93773.0,93772.0,0.3583]
[1763483445614,0.08819,93773.0,93758.0,0.02663]
[1763483445615,0.1067583,93748.0,93747.0,0.09073]
[1763483445811,0.25968,93748.0,93747.0,0.04479]
[1763483446014,0.1067584,93747.0,93744.0,0.02663]
[1763483446213,0.3608,93745.0,93744.0,0.07142]
[1763483446703,0.3608,93745.0,93744.0,0.11736]
[1763483447615,0.3608,93745.0,93744.0,0.02663]
[1763483447920,0.3608,93745.0,93744.0,0.11736]
[1763483448421,0.38396402,93745.0,93744.0,0.11736]
[1763483448608,0.38396402,93745.0,93744.0,0.07142]
[1763483448806,0.38396402,93745.0,93744.0,0.02663]
[1763483449213,0.38396402,93745.0,93735.0,0.00015993]
[1763483449414,0.4675711,93736.0,93735.0,0.00015993]
[1763483449614,0.7272911,93736.0,93735.0,0.00015993]
[1763483450011,0.7504561,93736.0,93735.0,0.00015993]
[1763483450214,0.1067813,93727.0,93686.0,0.00026685]
[1763483450519,0.1067927,93717.0,93716.0,0.07142]
[1763483450715,0.7273127,93717.0,93716.0,0.11736]
[1763483450924,0.62052,93717.0,93716.0,0.11736]
[1763483451112,0.21724,93717.0,93716.0,0.11736]
[1763483451307,0.001,93736.0,93716.0,0.11736]
[1763483451308,0.001,93736.0,93735.0,0.09073]
[1763483451513,0.25980044,93736.0,93735.0,0.09073]
[1763483453913,0.28902002,93748.0,93747.0,0.09073]
[1763483454922,0.2890979,93748.0,93747.0,0.09073]
[1763483455116,0.2900979,93748.0,93747.0,0.09073]
[1763483455309,0.36187788,93748.0,93747.0,0.09073]
[1763483456220,0.44906788,93748.0,93747.0,0.09073]
[1763483456617,0.44906788,93748.0,93747.0,0.04479]
[1763483457012,0.36187788,93748.0,93747.0,0.09073]
[1763483457522,0.36187788,93748.0,93745.0,0.1067603]
[1763483457523,0.45586788,93748.0,93741.0,0.1067635]
[1763483457711,0.1067576,93747.0,93740.0,0.00219803]
[1763483457914,0.36287788,93748.0,93740.0,0.00219803]
[1763483458123,0.1067615,93744.0,93740.0,0.00219803]
[1763483458424,0.09399,93741.0,93740.0,0.00219803]
[1763483458628,0.25972,93745.0,93740.0,0.10079803]
[1763483459126,0.04331,93742.0,93741.0,0.2053646]
[1763483459422,0.25972,93745.0,93744.0,0.2053611]
[1763483459729,0.001,93747.0,93746.0,0.0986]
[1763483460123,0.09499,93747.0,93746.0,0.0986]
[1763483460316,0.04331,93746.0,93745.0,0.1067596]
[1763483460517,0.36087788,93748.0,93747.0,0.0986]
[1763483461025,0.3608,93776.0,93756.0,0.11435]
[1763483461320,0.3608,93787.0,93775.0,0.2053259]
[1763483461626,0.3608,93795.0,93794.0,0.2053042]
[1763483461814,0.3608,93811.0,93794.0,0.3608]
[1763483462016,0.3608,93811.0,93810.0,0.0986]
[1763483462217,0.09414992,93820.0,93819.0,0.1066758]
[1763483462426,0.00015992,93820.0,93819.0,0.5660758]
[1763483462626,0.0002664,93846.0,93845.0,0.0986]
[1763483464119,0.00092243,93850.0,93849.0,0.04773]
[1763483464327,0.00092243,93850.0,93849.0,0.4594]
[1763483465024,0.00015908,93855.0,93854.0,0.0986]
[1763483465622,0.09399,93851.0,93850.0,0.00219803]
[1763483465825,0.45479,93851.0,93850.0,0.00219803]
[1763483466025,0.09399,93837.0,93825.0,0.3608]
[1763483466227,0.09399,93837.0,93800.0,0.02751]
[1763483466228,0.3608,93837.0,93800.0,0.02751]
[1763483466430,0.03104,93840.0,93783.0,1.21929499]
[1763483466431,0.09399,93810.0,93783.0,0.85849499]
[1763483466627,0.03104,93806.0,93783.0,0.85849499]
[1763483466830,0.3608,93784.0,93767.0,0.3608]
[1763483467025,0.3608,93784.0,93770.0,0.00219803]
[1763483467220,0.3608,93784.0,93783.0,0.0986]
[1763483467625,0.3598,93784.0,93783.0,0.0986]
[1763483467829,0.35989088,93784.0,93783.0,0.0986]
[1763483468432,9.088e-05,93784.0,93783.0,0.0986]
[1763483468632,8e-07,93786.0,93785.0,0.0986]
[1763483470026,0.0010008,93786.0,93785.0,0.0986]
[1763483470638,0.0010008,93786.0,93780.0,0.00219803]
[1763483470639,0.1067146,93785.0,93780.0,0.00219803]
[1763483470826,0.45479,93781.0,93770.0,0.00219803]
[1763483471026,0.40411,93781.0,93771.0,0.1067304]
[1763483471225,0.3608,93781.0,93780.0,0.0986]
[1763483471432,0.3608,93781.0,93780.0,0.10079803]
[1763483471628,0.09399,93769.0,93755.0,0.3608]
[1763483471836,0.35359,93769.0,93755.0,0.3608]
[1763483472333,0.2596,93769.0,93754.0,0.1067498]
[1763483472541,0.2596,93769.0,93760.0,0.00219803]
[1763483472542,0.3608,93762.0,93760.0,0.00219803]
[1763483472733,0.09399,93761.0,93760.0,0.00219803]
[1763483473130,1.7007319,93761.0,93742.0,0.3608]
[1763483473330,0.04331,93751.0,93750.0,0.10895243]
[1763483473732,0.2596,93759.0,93750.0,0.00219803]
[1763483474134,0.2596,93759.0,93751.0,0.1067533]
[1763483474330,0.2596,93759.0,93755.0,0.1067481]
[1763483474529,0.2596,93759.0,93758.0,0.0986]
[1763483474934,0.1067505,93754.0,93742.0,0.00015992]
[1763483475134,0.09399,93751.0,93742.0,0.00015992]
[1763483475334,0.09399,93751.0,93750.0,0.00219803]
[1763483475530,0.3608,93752.0,93751.0,0.0986]
[1763483475731,1.5,93755.0,93754.0,0.0986]
[1763483476442,0.2596,93759.0,93758.0,0.0986]
[1763483477538,0.2596,93759.0,93757.0,0.3608]
[1763483477539,0.3608,93774.0,93773.0,0.04773]
[1763483477731,0.4675087,93791.0,93790.0,0.0986]
[1763483477935,0.8716187,93791.0,93790.0,0.00219803]
[1763483478137,0.76491,93791.0,93790.0,0.00219803]
[1763483478344,0.7216,93791.0,93790.0,0.04992803]
[1763483479032,0.3608,93791.0,93790.0,0.04992803]
[1763483479236,0.3608,93791.0,93790.0,0.00219803]
[1763483479433,0.3608,93791.0,93790.0,0.10079803]
[1763483479634,0.45479,93791.0,93790.0,0.00219803]
[1763483479834,0.45679,93791.0,93790.0,0.00219803]
[1763483480036,0.3628,93791.0,93790.0,0.04992803]
[1763483480340,0.3628,93791.0,93790.0,0.00219803]
[1763483480341,0.45679,93791.0,93790.0,0.00219803]
[1763483480729,0.09797,93782.0,93781.0,0.00015992]
[1763483480935,0.45877,93782.0,93781.0,0.00015992]
[1763483481341,0.3608,93782.0,93781.0,0.09808992]
[1763483481741,0.3608,93782.0,93781.0,0.20480912]
[1763483482038,0.25964,93785.0,93784.0,0.2046458]
[1763483482730,0.3608,93791.0,93790.0,0.2046389]
[1763483482928,0.3608,93791.0,93790.0,0.20683693]
[1763483483146,0.25964,93798.0,93797.0,0.204631]
[1763483483438,0.00015992,93800.0,93799.0,0.09793]
[1763483483638,0.00015992,93800.0,93799.0,0.45873]
[1763483484832,0.00015992,93800.0,93790.0,0.3608]
[1763483485145,0.45877,93791.0,93774.0,0.1067267]
[1763483485340,0.45877,93791.0,93771.0,0.1067305]
[1763483485341,0.565488,93782.0,93771.0,0.1067305]
[1763483485636,0.45877,93782.0,93780.0,0.00219803]
[1763483485845,0.00215992,93800.0,93799.0,0.1066987]
[1763483486030,0.00015992,93800.0,93799.0,0.4674987]
[1763483486233,0.00215992,93800.0,93799.0,0.3608]
[1763483486433,0.25972,93834.0,93822.0,0.1066725]
[1763483486637,0.03104,93840.0,93822.0,0.1066725]
[1763483486638,0.07821,93840.0,93839.0,0.1066532]
[1763483486939,0.07821,93840.0,93839.0,0.4674532]
[1763483486940,0.2908,93840.0,93839.0,0.4674532]
[1763483487141,0.33797,93840.0,93839.0,0.4674532]
[1763483488134,0.2908,93840.0,93839.0,0.4674532]
[1763483488536,0.2908,93840.0,93832.0,0.1066602]
[1763483488837,0.2908,93840.0,93830.0,0.36315795]
[1763483488838,0.09873,93831.0,93830.0,0.36315795]
[1763483489342,0.2908,93840.0,93830.0,0.36315795]
[1763483489343,0.09873,93838.0,93837.0,0.106655]
[1763483489739,0.3608,93852.0,93851.0,0.1066396]
[1763483490043,0.09873,93851.0,93850.0,0.00219803]
[1763483490742,0.3608,93862.0,93850.0,0.00219803]
[1763483490743,0.07717,93857.0,93856.0,0.1066339]
[1763483490943,0.38859,93857.0,93856.0,0.1066339]
[1763483491144,0.12891,93857.0,93856.0,0.4674339]
[1763483491439,0.03018,93857.0,93856.0,0.4674339]
[1763483491646,0.03018,93870.0,93860.0,0.00219803]
[1763483491837,0.03018,93870.0,93864.0,0.4674248]
[1763483492943,0.1066082,93879.0,93864.0,0.4674248]
[1763483493141,0.25964,93883.0,93864.0,0.4674248]
[1763483493343,0.00026628,93886.0,93864.0,0.3608]
[1763483493550,0.00026628,93886.0,93879.0,0.1066078]
[1763483493842,0.09873,93875.0,93874.0,0.3608]
[1763483494143,0.25956,93885.0,93876.0,0.1066099]
[1763483494344,0.04699,93877.0,93874.0,0.3608]
[1763483494549,0.09873,93875.0,93874.0,0.3608]
[1763483494847,0.09873,93871.0,93870.0,0.00219803]
[1763483495847,0.03114,93857.0,93856.0,0.3608]
[1763483496034,0.12987,93857.0,93856.0,0.3608]
[1763483496242,0.03114,93840.0,93823.0,0.3608]
[1763483496434,0.09873,93833.0,93832.0,0.4674605]
[1763483496641,0.04699,93833.0,93832.0,0.4674605]
[1763483497035,0.03114,93840.0,93838.0,0.1066533]
[1763483497240,0.25956,93839.0,93838.0,0.1066533]
[1763483497440,0.03114,93840.0,93838.0,0.1066533]
[1763483498448,0.04699,93838.0,93837.0,0.1066549]
[1763483498746,0.09873,93833.0,93832.0,0.4674608]
[1763483499148,0.09873,93833.0,93832.0,0.3608]
[1763483499454,0.09873,93814.0,93813.0,0.3608]
[1763483499750,0.04699,93801.0,93800.0,0.10899458]
[1763483500251,0.03114,93806.0,93805.0,0.1066915]
[1763483500453,0.03114,93806.0,93805.0,0.4674915]
[1763483500642,0.12987,93806.0,93805.0,0.3608]
[1763483500948,0.12987,93806.0,93800.0,0.00229738]
[1763483500949,0.2054261,93801.0,93800.0,0.00229738]
[1763483501650,0.09873,93801.0,93800.0,0.00229738]
[1763483502443,0.04699,93801.0,93800.0,0.00229738]
[1763483502646,0.3608,93814.0,93800.0,0.00229738]
[1763483502647,0.25952,93809.0,93800.0,0.00229738]
[1763483502848,0.25952,93809.0,93806.0,0.3608]
[1763483503048,0.25952,93809.0,93808.0,0.1066881]
[1763483503550,0.03114,93823.0,93813.0,0.1066824]
[1763483503749,0.03114,93823.0,93814.0,0.3608]
[1763483506745,0.1066726,93822.0,93814.0,0.3608]
[1763483506945,0.1066763,93819.0,93814.0,0.3608]
[1763483507145,0.03114,93823.0,93822.0,0.1066722]
[1763483507551,0.12987,93823.0,93822.0,0.1066722]
[1763483507752,0.12987,93823.0,93820.0,0.00219803]
[1763483507753,0.09873,93821.0,93820.0,0.00219803]
[1763483508052,0.2054102,93815.0,93814.0,0.3608]
[1763483508257,0.09873,93811.0,93810.0,0.00219803]
[1763483508459,0.09873,93811.0,93810.0,0.10888383]
[1763483508647,0.3608,93822.0,93813.0,0.1066815]
[1763483508848,0.04699,93811.0,93810.0,0.00219803]
[1763483509153,0.09873,93811.0,93810.0,0.00219803]
[1763483509550,0.09873,93811.0,93810.0,0.10888383]
[1763483509945,0.3608,93814.0,93811.0,0.1066847]
[1763483510142,0.1066733,93821.0,93810.0,0.00219803]
[1763483510343,0.03114,93823.0,93820.0,0.1066733]
[1763483510653,0.03114,93823.0,93810.0,0.00219803]
[1763483510654,0.09873,93811.0,93810.0,0.00219803]
[1763483512446,0.03114,93823.0,93822.0,0.1066723]
[1763483512757,0.03114,93823.0,93820.0,0.00219803]
[1763483512953,0.03114,93823.0,93821.0,0.1066734]
[1763483513456,0.04699,93821.0,93820.0,0.00219803]
[1763483513659,0.09873,93810.0,93809.0,0.3608]
[1763483513855,0.106691,93806.0,93800.0,0.10679555]
[1763483514158,0.09873,93801.0,93800.0,0.10899468]
[1763483515550,0.03114,93808.0,93805.0,0.1066911]
[1763483515754,0.03114,93808.0,93800.0,0.00229738]
[1763483515755,0.09873,93801.0,93800.0,0.00229738]
[1763483515951,0.2054261,93801.0,93800.0,0.00229738]
[1763483516150,0.09873,93801.0,93800.0,0.00229738]
[1763483516462,0.2054261,93801.0,93800.0,0.00229738]
[1763483516952,0.03114,93808.0,93805.0,0.1066916]
[1763483517152,0.09323,93806.0,93805.0,0.1066916]
[1763483517354,0.05107,93801.0,93800.0,0.10899468]
[1763483517544,0.09731,93801.0,93800.0,0.10899468]
[1763483519144,0.3608,93814.0,93800.0,0.10899468]
[1763483519145,0.3608,93814.0,93813.0,0.1066825]
[1763483519549,0.09731,93812.0,93811.0,0.4674848]
[1763483520450,0.02711,93810.0,93809.0,0.106687]
[1763483520650,0.12442,93810.0,93809.0,0.106687]
[1763483521360,0.09731,93808.0,93807.0,0.3608]
[1763483521546,0.2040061,93801.0,93800.0,0.00229738]
[1763483522353,0.09731,93801.0,93800.0,0.00229738]
[1763483522559,0.1066912,93806.0,93800.0,0.00229738]
[1763483522745,0.09731,93801.0,93800.0,0.00229738]
[1763483523149,0.09731,93801.0,93800.0,9.935e-05]
[1763483523349,0.05107,93801.0,93800.0,0.00229738]
[1763483523549,0.05107,93807.0,93806.0,0.10669]
[1763483523759,0.09731,93801.0,93800.0,9.935e-05]
[1763483523953,0.09731,93801.0,93800.0,0.46979468]
[1763483524456,0.2040061,93801.0,93800.0,0.36089935]
[1763483524660,0.2040061,93801.0,93800.0,9.935e-05]
[1763483524857,0.5648061,93801.0,93800.0,9.935e-05]
[1763483525055,0.5648061,93801.0,93768.0,0.3608]
[1763483525056,0.106725,93776.0,93768.0,0.3608]
[1763483525254,0.09731,93771.0,93770.0,0.00219803]
[1763483525664,0.09731,93767.0,93766.0,0.00026662]
[1763483526053,0.09741645,93767.0,93766.0,0.00026662]
[1763483529251,0.00010645,93767.0,93766.0,0.00026662]
[1763483529455,0.2202,93800.0,93794.0,0.106703]
[1763483530354,0.07818,93795.0,93794.0,0.106703]
[1763483530551,0.02711,93795.0,93794.0,0.106703]
[1763483530751,0.31751,93800.0,93799.0,0.1066973]
[1763483530969,0.31751,93800.0,93791.0,0.3608]
[1763483531158,0.12442,93792.0,93791.0,0.3608]
[1763483532362,0.2202,93800.0,93792.0,0.1067053]
[1763483532666,0.2202,93800.0,93799.0,0.4674973]
[1763483532667,0.31751,93800.0,93799.0,0.4674973]
[1763483533064,0.00015989,93804.0,93803.0,0.1066928]
[1763483533368,0.00015989,93804.0,93803.0,0.4674928]
[1763483533871,0.03114,93823.0,93822.0,0.1066712]
[1763483534060,0.09731,93836.0,93822.0,0.3608]
[1763483534365,0.02711,93824.0,93823.0,0.10667]
[1763483534562,0.02711,93824.0,93823.0,0.46747]
[1763483534755,0.07818,93824.0,93823.0,0.46747]
[1763483534961,0.12442,93824.0,93823.0,0.3608]
[1763483535160,0.02711,93824.0,93823.0,0.3608]
[1763483536064,0.12442,93824.0,93823.0,0.3608]
[1763483536769,0.12442,93824.0,93820.0,0.00219803]
[1763483536770,0.09731,93821.0,93820.0,0.00219803]
[1763483537860,0.02711,93824.0,93821.0,0.1066724]
[1763483538064,0.09731,93822.0,93821.0,0.1066724]
[1763483538966,0.09731,93821.0,93820.0,0.00219803]
[1763483539169,0.02711,93824.0,93821.0,0.1066724]
[1763483539473,0.09731,93822.0,93821.0,0.1066724]
[1763483539861,0.09731,93821.0,93820.0,0.10887163]
[1763483540169,0.02711,93824.0,93823.0,0.1066702]
[1763483540376,0.07918,93824.0,93823.0,0.1066702]
[1763483540665,0.12057,93824.0,93823.0,0.10364442]
[1763483540867,0.07918,93824.0,93823.0,0.05936051]
[1763483541075,0.02711,93824.0,93823.0,0.05936051]
[1763483541366,0.10909,93840.0,93839.0,0.106652]
[1763483542075,0.106658,93834.0,93832.0,0.1066593]
[1763483542367,0.188649,93824.0,93823.0,0.3608]
[1763483542569,0.08198,93824.0,93823.0,0.3608]
[1763483542771,0.06575,93825.0,93824.0,0.106669]
[1763483543272,0.02516,93825.0,93824.0,0.106669]
[1763483543472,0.10909,93840.0,93839.0,0.106652]
[1763483543858,0.106652,93839.0,93836.0,0.1066554]
[1763483544064,0.1886365,93835.0,93834.0,0.3608]
[1763483544259,0.08198,93835.0,93834.0,0.3608]
[1763483545165,0.08198,93831.0,93830.0,0.00219803]
[1763483545666,0.1886411,93831.0,93830.0,0.00219803]
[1763483545866,0.1886411,93831.0,93823.0,0.3608]
[1763483545867,0.188649,93824.0,93823.0,0.3608]
[1763483546076,0.08198,93824.0,93823.0,0.3608]
[1763483546570,0.08198,93824.0,93823.0,0.4674702]
[1763483547672,0.188649,93824.0,93823.0,0.3608]
[1763483547971,0.189649,93824.0,93823.0,0.3608]
[1763483548179,0.191649,93824.0,93823.0,0.3608]
[1763483548565,0.1875125,93821.0,93820.0,0.00219803]
[1763483549681,0.08084,93821.0,93820.0,0.00219803]
[1763483550174,0.08059,93815.0,93801.0,0.3608]
[1763483550367,0.08059,93802.0,93801.0,0.4674942]
[1763483550569,0.04025,93802.0,93801.0,0.4674942]
[1763483550768,0.0255,93814.0,93813.0,0.1066816]
[1763483550978,0.0255,93814.0,93813.0,0.4674816]
[1763483551479,0.04334,93821.0,93820.0,0.1066736]
[1763483551674,0.08359,93821.0,93820.0,0.10887163]
[1763483551867,0.08159,93821.0,93820.0,0.10887163]
[1763483552274,0.001,93821.0,93820.0,0.10887163]
[1763483552672,0.0255,93870.0,93839.0,0.106652]
[1763483552872,0.28655,93856.0,93840.0,0.00219803]
[1763483553072,0.0255,93842.0,93841.0,0.1066496]
[1763483554081,0.08059,93841.0,93840.0,0.00219803]
[1763483555471,0.08159,93841.0,93840.0,0.00219803]
[1763483555676,0.04134,93841.0,93840.0,0.00219803]
[1763483555982,0.08159,93841.0,93840.0,0.00219803]
[1763483556567,0.08059,93833.0,93832.0,0.00015991]
[1763483556772,0.08059,93813.0,93812.0,0.3608]
[1763483557277,0.0255,93828.0,93825.0,0.1066672]
[1763483557479,0.06584,93828.0,93827.0,0.3608]
[1763483557777,0.10609,93828.0,93827.0,0.3608]
[1763483558177,0.04025,93821.0,93820.0,0.3608]
[1763483558486,0.08059,93821.0,93820.0,0.36299803]
[1763483559382,0.0255,93828.0,93820.0,0.36299803]
[1763483559581,0.0255,93828.0,93825.0,0.1066588]
[1763483559986,0.08059,93821.0,93820.0,0.36299803]
[1763483560181,0.0255,93828.0,93824.0,0.1066597]
[1763483560483,0.04049991,93837.0,93836.0,0.1066466]
[1763483560684,0.00015991,93837.0,93836.0,0.4674466]
[1763483562171,0.00015991,93837.0,93836.0,0.50491257]
[1763483562371,0.00015991,93837.0,93836.0,0.4674466]
[1763483562577,0.00015991,93837.0,93836.0,0.50491257]
[1763483562980,0.00015991,93837.0,93836.0,0.4674466]
[1763483563183,0.00015991,93837.0,93836.0,0.50494166]
[1763483564475,0.00015991,93837.0,93836.0,0.4674466]
[1763483565286,0.08074991,93837.0,93836.0,0.39828518]
[1763483565588,0.08074991,93837.0,93836.0,0.3608]
[1763483565878,0.08074991,93837.0,93832.0,0.1066502]
[1763483565879,0.08059,93833.0,93832.0,0.03748518]
[1763483566088,0.08059,93825.0,93824.0,0.14414518]
[1763483566382,0.08059,93825.0,93824.0,0.14414433]
[1763483566578,0.18725,93824.0,93823.0,0.03748433]
[1763483566785,0.1872523,93822.0,93821.0,0.3608]
[1763483567477,0.08059,93819.0,93818.0,0.00015991]
[1763483567682,0.1872648,93811.0,93810.0,0.03748433]
[1763483567882,0.08059,93806.0,93805.0,0.3608]
[1763483568283,0.0255,93814.0,93805.0,0.39048]
[1763483568480,0.06584,93814.0,93813.0,0.3608]
[1763483568682,0.10609,93814.0,93813.0,0.3608]
[1763483568983,0.0255,93814.0,93813.0,0.39048]
[1763483569184,0.25955991,93823.0,93813.0,0.39048]
[1763483569185,0.25955991,93823.0,93813.0,0.4971525]
[1763483569381,0.25955991,93823.0,93813.0,0.39048]
[1763483569686,0.10609,93814.0,93813.0,0.3608]
[1763483570390,0.10609,93814.0,93813.0,0.37564]
[1763483570989,0.00015991,93823.0,93822.0,0.1363423]
[1763483571173,0.0255,93870.0,93841.0,0.01484]
[1763483571174,0.3608,93850.0,93841.0,0.01484]
[1763483571379,0.2594,93854.0,93841.0,0.01484]
[1763483571579,0.06584,93842.0,93841.0,0.01484]
[1763483571995,0.1872307,93841.0,93840.0,0.00219803]
[1763483572284,0.08059,93841.0,93840.0,0.00219803]
[1763483572984,0.08059,93832.0,93831.0,0.00015991]
[1763483577282,0.04034,93832.0,93831.0,0.01963991]
[1763483577485,0.07882,93832.0,93831.0,0.00015991]
[1763483577689,0.04001,93832.0,93831.0,0.00943991]
[1763483577887,0.07882,93832.0,93831.0,0.00015991]
[1763483578477,0.07882,93840.0,93839.0,0.1066422]
[1763483578688,0.07882,93840.0,93839.0,0.4674422]
[1763483579583,0.07882,93840.0,93839.0,0.467443]
[1763483579783,0.00015991,93850.0,93848.0,0.1066323]
[1763483579985,0.07882,93849.0,93848.0,0.4674323]
[1763483580188,0.07882,93849.0,93848.0,0.3608]
[1763483581085,0.00015991,93850.0,93849.0,0.1159116]
[1763483581290,0.07882,93849.0,93848.0,0.3608]
[1763483581488,0.07882,93849.0,93832.0,0.31552626]
[1763483581489,0.0223,93842.0,93829.0,0.3608]
[1763483581785,0.07882,93832.0,93829.0,0.3608]
[1763483582179,0.07882,93832.0,93830.0,0.00219803]
[1763483582379,0.0223,93842.0,93831.0,0.00943991]
[1763483582583,0.10112,93842.0,93841.0,0.3608]
[1763483583587,0.10112,93842.0,93841.0,0.4674407]
[1763483583891,0.07882,93832.0,93831.0,0.00015991]
[1763483584782,0.07882,93841.0,93840.0,0.1066411]
[1763483584977,0.07882,93841.0,93840.0,0.36299803]
[1763483585192,0.1854607,93841.0,93840.0,0.36299803]
[1763483585895,0.1854607,93841.0,93840.0,0.3608]
[1763483586184,0.1854607,93841.0,93840.0,0.36299803]
[1763483587288,0.04001,93841.0,93840.0,0.37227803]
[1763483587494,0.07882,93841.0,93840.0,0.36763803]
[1763483587696,0.07882,93841.0,93840.0,0.36299803]
[1763483588587,0.07882,93841.0,93840.0,0.29981]
[1763483588882,0.1854709,93832.0,93831.0,0.00015991]
[1763483590496,0.07882,93832.0,93831.0,0.00015991]
[1763483591196,0.1066374,93844.0,93840.0,0.1066418]
[1763483591489,0.04001,93841.0,93840.0,0.1485518]
[1763483591689,0.07897991,93850.0,93840.0,0.00219803]
[1763483591892,0.07882,93841.0,93840.0,0.00219803]
[1763483592097,0.07882,93841.0,93840.0,0.08171803]
[1763483592593,0.07882,93841.0,93840.0,0.00219803]
[1763483592984,0.07882,93832.0,93831.0,0.03761047]
[1763483593191,0.07882,93832.0,93831.0,0.00015991]
[1763483593995,0.1854823,93822.0,93821.0,0.03745056]
[1763483594194,0.1854971,93809.0,93808.0,0.03745056]
[1763483594389,0.1855005,93806.0,93804.0,0.03745056]
[1763483594694,0.1855062,93801.0,93800.0,0.00219803]
[1763483594893,0.1855084,93799.0,93798.0,0.3608]
[1763483595293,0.07882,93799.0,93798.0,0.3608]
[1763483597289,0.04001,93799.0,93798.0,0.44032]
[1763483597692,0.07882,93799.0,93798.0,0.44032]
[1763483597899,0.04001,93799.0,93798.0,0.44032]
[1763483598088,0.02245991,93808.0,93807.0,0.1066794]
[1763483598286,0.00015991,93808.0,93807.0,0.1861994]
[1763483598506,0.07882,93811.0,93810.0,0.00219803]
[1763483599189,0.1854994,93807.0,93806.0,0.3608]
[1763483599389,0.07882,93799.0,93798.0,0.3608]
[1763483600486,0.1830687,93790.0,93789.0,0.00015991]
[1763483601000,0.07637,93790.0,93789.0,0.00015991]
[1763483601394,0.3608,93798.0,93797.0,0.1783807]
[1763483601595,0.25936,93803.0,93802.0,0.178375]
[1763483601792,0.33152,93803.0,93800.0,0.00219803]
[1763483601988,0.07216,93801.0,93800.0,0.00219803]
[1763483602193,0.00015991,93808.0,93800.0,0.00219803]
[1763483602388,0.00015991,93808.0,93807.0,0.43249]
[1763483603801,0.07231991,93808.0,93807.0,0.3608]
[1763483604906,0.1788496,93798.0,93797.0,0.3608]
[1763483605402,0.07216,93790.0,93788.0,7.648e-05]
[1763483606995,0.02115,93776.0,93770.0,0.001]
[1763483607200,0.03745,93771.0,93770.0,0.00319803]
[1763483607619,0.03645,93771.0,93770.0,0.00219803]
[1763483607901,8.585e-05,93780.0,93770.0,0.00219803]
[1763483608106,8.585e-05,93780.0,93779.0,0.3608]
[1763483608405,0.07137,93769.0,93768.0,0.36095991]
[1763483608597,0.07037,93769.0,93768.0,0.36095991]
[1763483609302,0.06937,93769.0,93768.0,0.00015991]
[1763483609507,0.06837,93769.0,93768.0,0.00015991]
[1763483609698,0.06837,93769.0,93766.0,0.00026662]
[1763483609699,0.07137,93767.0,93766.0,0.00026662]
[1763483610005,0.06945585,93767.0,93766.0,0.00026662]
[1763483610208,0.32885585,93767.0,93766.0,0.00026662]
[1763483610510,0.32685585,93767.0,93766.0,0.00026662]
[1763483610899,0.06745585,93767.0,93766.0,0.00026662]
[1763483611105,0.06745585,93767.0,93766.0,0.00226662]
[1763483612100,0.1781051,93758.0,93757.0,0.00015991]
[1763483612403,0.07137,93758.0,93757.0,0.00015991]
[1763483613200,0.07137,93758.0,93757.0,0.00215991]
[1763483613414,0.09252,93750.0,93749.0,0.3608]
[1763483613601,0.19935005,93750.0,93749.0,0.3608]
[1763483613913,8.585e-05,93750.0,93749.0,0.43142]
[1763483614909,8.585e-05,93750.0,93749.0,0.43342]
[1763483615109,8.585e-05,93750.0,93749.0,0.43542]
[1763483615702,0.00015991,93767.0,93765.0,0.1067266]
[1763483616006,0.28063,93786.0,93766.0,0.7216]
[1763483616208,0.07137,93777.0,93776.0,0.3608]
[1763483616408,0.1067181,93773.0,93769.0,0.1067226]
[1763483616603,0.1067137,93777.0,93771.0,0.1067203]
[1763483617108,0.07137,93777.0,93776.0,0.3608]
[1763483617705,0.00016,93783.0,93780.0,0.10890803]
[1763483618009,0.00016,93783.0,93782.0,0.07062]
[1763483618400,0.00016,93783.0,93780.0,0.17952813]
[1763483618605,0.00016,93783.0,93782.0,0.07062]
[1763483618804,0.00016,93783.0,93782.0,0.08137038]
[1763483619013,0.07137,93781.0,93780.0,0.00219803]
[1763483619216,0.03745,93781.0,93780.0,0.03846803]
[1763483619414,0.25948,93791.0,93780.0,0.00219803]
[1763483619709,0.25948,93794.0,93790.0,0.43142]
[1763483619903,0.1441476,93791.0,93790.0,0.39926803]
[1763483620101,0.1780676,93791.0,93790.0,0.36299803]
[1763483620910,0.00016,93801.0,93800.0,0.1773073]
[1763483621118,0.1068462,93801.0,93800.0,0.43361803]